fUST/lending_fUST_20240608
["ID","MTS","AMOUNT","RATE_DAILY","PERIOD"]
[328829133,1717853447105,-500.0,0.00016438,2]
[328829134,1717853447115,-500.0,0.00016438,2]
[328829135,1717853447125,-500.0,0.00016438,2]
[328829136,1717853447139,-390.50701193,0.00016438,2]
[328829137,1717853447149,-554.05878802,0.00016438,2]
[328829138,1717853447159,-505.05332629,0.00016438,2]
[328829139,1717853447169,-500.0,0.00016438,2]
[328829140,1717853447180,-501.38927062,0.00016438,2]
[328829141,1717853447190,-504.82390423,0.00016438,2]
[328829142,1717853447202,-500.0,0.00016438,2]
[328829143,1717853447215,-514.49248772,0.00016438,2]
[328829144,1717853447225,-502.58153009,0.00016438,2]
[328829145,1717853447235,-500.0,0.00016438,2]
[328829146,1717853447245,-501.17361634,0.00016438,2]
[328829147,1717853447254,-510.68,0.00016438,2]
[328829148,1717853447264,-534.06960814,0.00016438,2]
[328829149,1717853447274,-500.55287067,0.00016438,2]
[328829150,1717853447284,-500.0,0.00016438,2]
[328829151,1717853447293,-502.98834775,0.00016438,2]
[328829152,1717853447304,-500.0,0.00016438,2]
[328829153,1717853447314,-501.46563703,0.00016438,2]
[328829154,1717853447323,-500.0,0.00016438,2]
[328829155,1717853447332,-240.57063019,0.00016438,2]
[328829156,1717853447342,-504.90987924,0.00016438,2]
[328829157,1717853447352,-500.0,0.00016438,2]
[328829158,1717853447362,-500.0,0.00016438,2]
[328829159,1717853447372,-501.00579062,0.00016438,2]
[328829160,1717853447381,-501.71855782,0.00016438,2]
[328829161,1717853447391,-500.0,0.00016438,2]
[328829162,1717853447400,-503.31444845,0.00016438,2]
[328829163,1717853447411,-500.0,0.00016438,2]
[328829164,1717853447421,-502.31521493,0.00016438,2]
[328829165,1717853447431,-501.3372739,0.00016438,2]
[328829166,1717853447441,-634.39445306,0.00016438,2]
[328829167,1717853447453,-500.0,0.00016438,2]
[328829168,1717853447463,-500.0,0.00016438,2]
[328829169,1717853447472,-580.56,0.00016438,2]
[328829170,1717853447481,-500.0,0.00016438,2]
[328829171,1717853447491,-500.0,0.00016438,2]
[328829172,1717853447500,-500.0,0.00016438,2]
[328829173,1717853447510,-1749.48,0.00016438,2]
[328829174,1717853447520,-500.0,0.00016438,2]
[328829175,1717853447530,-572.47,0.00016438,2]
[328829176,1717853447539,-500.0,0.00016438,2]
[328829177,1717853447549,-504.8708622,0.00016438,2]
[328829178,1717853447559,-500.77830058,0.00016438,2]
[328829179,1717853447568,-500.0,0.00016438,2]
[328829180,1717853447578,-500.0,0.00016438,2]
[328829181,1717853447588,-501.28866295,0.00016438,2]
[328829182,1717853447598,-599.33297921,0.00016438,2]
[328829183,1717853447607,-500.0,0.00016438,2]
[328829184,1717853447617,-251.55647554,0.00016438,2]
[328829185,1717853447627,-500.0,0.00016438,2]
[328829186,1717853447637,-500.0,0.00016438,2]
[328829187,1717853447647,-500.0,0.00016438,2]
[328829188,1717853447657,-502.08517868,0.00016438,2]
[328829189,1717853447668,-500.0,0.00016438,2]
[328829190,1717853447678,-503.09226001,0.00016438,2]
[328829191,1717853447687,-500.0,0.00016438,2]
[328829192,1717853447698,-557.21,0.00016438,2]
[328829193,1717853447708,-504.52251071,0.00016438,2]
[328829194,1717853447717,-502.50622504,0.00016438,2]
[328829195,1717853447726,-500.0,0.00016438,2]
[328829196,1717853447736,-500.78122602,0.00016438,2]
[328829197,1717853447746,-512.23451492,0.00016438,2]
[328829198,1717853447758,-500.0,0.00016438,2]
[328829199,1717853447769,-500.0,0.00016438,2]
[328829200,1717853447779,-423.40497099,0.00016438,2]
[328829201,1717853447789,-500.0,0.00016438,2]
[328829202,1717853447800,-500.0,0.00016438,2]
[328829203,1717853447810,-500.0,0.00016438,2]
[328829204,1717853447821,-500.0,0.00016438,2]
[328829205,1717853447830,-500.0,0.00016438,2]
[328829206,1717853447840,-500.0,0.00016438,2]
[328829207,1717853447851,-500.0,0.00016438,2]
[328829208,1717853447861,-500.0,0.00016438,2]
[328829209,1717853447871,-188.14522081,0.00016438,2]
[328829210,1717853447881,-337.26021651,0.00016438,2]
[328829211,1717853447891,-500.0,0.00016438,2]
[328829212,1717853447900,-500.0,0.00016438,2]
[328829213,1717853447911,-500.0,0.00016438,2]
[328829214,1717853447920,-500.0,0.00016438,2]
[328829215,1717853447930,-502.32748514,0.00016438,2]
[328829216,1717853447940,-500.0,0.00016438,2]
[328829217,1717853447954,-500.92213686,0.00016438,2]
[328829218,1717853447963,-507.6551746,0.00016438,2]
[328829219,1717853447973,-500.0,0.00016438,2]
[328829220,1717853447983,-503.51836835,0.00016438,2]
[328829221,1717853447993,-500.0,0.00016438,2]
[328829222,1717853448002,-501.5128347,0.00016438,2]
[328829223,1717853448013,-806.29,0.00016438,2]
[328829224,1717853448023,-500.0,0.00016438,2]
[328829225,1717853448033,-500.0,0.00016438,2]
[328829226,1717853448043,-500.0,0.00016438,2]
[328829227,1717853448053,-500.0,0.00016438,2]
[328829228,1717853448062,-500.0,0.00016438,2]
[328829229,1717853448072,-600.76195683,0.00016438,2]
[328829230,1717853448082,-2075.49,0.00016438,2]
[328829231,1717853448092,-422.03675893,0.00016438,2]
[328829232,1717853448102,-500.0,0.00016438,2]
[328829233,1717853448112,-500.0,0.00016438,2]
[328829234,1717853448126,-500.0,0.00016438,2]
[328829235,1717853448137,-500.0,0.00016438,2]
[328829236,1717853448148,-500.0,0.00016438,2]
[328829237,1717853448159,-500.0,0.00016438,2]
[328829238,1717853448169,-162.72056977,0.00016438,2]
[328829239,1717853448179,-500.0,0.00016438,2]
[328829240,1717853448189,-503.14256643,0.00016438,2]
[328829241,1717853448200,-500.0,0.00016438,2]
[328829242,1717853448213,-500.0,0.00016438,2]
[328829243,1717853448223,-500.0,0.00016438,2]
[328829244,1717853448233,-500.0,0.00016438,2]
[328829245,1717853448243,-500.0,0.00016438,2]
[328829246,1717853448253,-500.0,0.00016438,2]
[328829247,1717853448264,-500.0,0.00016438,2]
[328829248,1717853448273,-757.26,0.00016438,2]
[328829249,1717853448282,-1127.04,0.00016438,2]
[328829250,1717853448292,-500.0,0.00016438,2]
[328829251,1717853448302,-500.0,0.00016438,2]
[328829252,1717853448312,-500.0,0.00016438,2]
[328829253,1717853448321,-591.94,0.00016438,2]
[328829254,1717853448331,-504.59578601,0.00016438,2]
[328829255,1717853448340,-500.0,0.00016438,2]
[328829256,1717853448349,-570.08,0.00016438,2]
[328829257,1717853448359,-500.0,0.00016438,2]
[328829258,1717853448380,-537.93420019,0.00016438,2]
[328829259,1717853448392,-500.0,0.00016438,2]
[328829260,1717853448402,-547.23,0.00016438,2]
[328829261,1717853448412,-547.23,0.00016438,2]
[328829262,1717853448423,-547.23,0.00016438,2]
[328829263,1717853448434,-547.23,0.00016438,2]
[328829264,1717853448444,-547.23,0.00016438,2]
[328829265,1717853448457,-547.23,0.00016438,2]
[328829266,1717853448467,-547.23,0.00016438,2]
[328829267,1717853448476,-500.0,0.00016438,2]
[328829268,1717853448486,-507.66667366,0.00016438,2]
[328829269,1717853448497,-500.0,0.00016438,2]
[328829270,1717853448507,-500.0,0.00016438,2]
[328829271,1717853448516,-764.26,0.00016438,2]
[328829272,1717853448526,-500.0,0.00016438,2]
[328829273,1717853448536,-500.0,0.00016438,2]
[328829274,1717853448546,-500.0,0.00016438,2]
[328829275,1717853448555,-500.0,0.00016438,2]
[328829276,1717853448565,-500.0,0.00016438,2]
[328829277,1717853448574,-500.0,0.00016438,2]
[328829278,1717853448584,-500.0,0.00016438,2]
[328829279,1717853448593,-500.0,0.00016438,2]
[328829280,1717853448602,-500.0,0.00016438,2]
[328829281,1717853448612,-500.0,0.00016438,2]
[328829282,1717853448621,-505.68179822,0.00016438,2]
[328829283,1717853448631,-500.0,0.00016438,2]
[328829284,1717853448641,-500.0,0.00016438,2]
[328829285,1717853448651,-500.0,0.00016438,2]
[328829286,1717853448661,-500.0,0.00016438,2]
[328829287,1717853448671,-503.74567156,0.00016438,2]
[328829288,1717853448680,-516.41874044,0.00016438,2]
[328829289,1717853448690,-500.0,0.00016438,2]
[328829290,1717853448699,-524.84,0.00016438,2]
[328829291,1717853448708,-1721.16,0.00016438,2]
[328829292,1717853448718,-500.0,0.00016438,2]
[328829293,1717853448728,-502.14680735,0.00016438,2]
[328829294,1717853448739,-500.0,0.00016438,2]
[328829295,1717853448749,-500.0,0.00016438,2]
[328829296,1717853448760,-500.0,0.00016438,2]
[328829297,1717853448771,-500.0,0.00016438,2]
[328829298,1717853448780,-500.0,0.00016438,2]
[328829299,1717853448791,-501.92815237,0.00016438,2]
[328829300,1717853448801,-500.0,0.00016438,2]
[328829301,1717853448811,-739.14,0.00016438,2]
[328829302,1717853448822,-506.08087949,0.00016438,2]
[328829303,1717853448832,-500.0,0.00016438,2]
[328829304,1717853448843,-500.0,0.00016438,2]
[328829305,1717853448854,-157.66441,0.00016438,2]
[328829306,1717853448865,-500.0,0.00016438,2]
[328829307,1717853448875,-157.66441,0.00016438,2]
[328829308,1717853448885,-157.66441,0.00016438,2]
[328829309,1717853448895,-500.0,0.00016438,2]
[328829310,1717853448905,-500.90026645,0.00016438,2]
[328829311,1717853448915,-157.66441,0.00016438,2]
[328829312,1717853448926,-157.66441,0.00016438,2]
[328829313,1717853448936,-157.66441,0.00016438,2]
[328829314,1717853449072,-157.66441,0.00016438,2]
[328829315,1717853449083,-157.66441,0.00016438,2]
[328829316,1717853449093,-500.0,0.00016438,2]
[328829317,1717853449104,-157.66441,0.00016438,2]
[328829318,1717853449114,-157.66441,0.00016438,2]
[328829319,1717853449124,-157.66441,0.00016438,2]
[328829320,1717853449137,-157.66441,0.00016438,2]
[328829321,1717853449147,-157.66441,0.00016438,2]
[328829322,1717853449157,-157.66441,0.00016438,2]
[328829323,1717853449167,-157.66441,0.00016438,2]
[328829324,1717853449178,-157.66441,0.00016438,2]
[328829325,1717853449187,-157.66441,0.00016438,2]
[328829326,1717853449200,-157.66441,0.00016438,2]
[328829327,1717853449210,-431.63915385,0.00016438,2]
[328829328,1717853449221,-157.66441,0.00016438,2]
[328829329,1717853449231,-500.0,0.00016438,2]
[328829330,1717853449241,-157.66441,0.00016438,2]
[328829331,1717853449251,-500.0,0.00016438,2]
[328829332,1717853449261,-528.04409053,0.00016438,2]
[328829333,1717853449271,-500.0,0.00016438,2]
[328829334,1717853449281,-500.0,0.00016438,2]
[328829335,1717853449291,-500.0,0.00016438,2]
[328829336,1717853449302,-500.0,0.00016438,2]
[328829337,1717853449312,-500.0,0.00016438,2]
[328829338,1717853449322,-500.0,0.00016438,2]
[328829339,1717853449331,-500.0,0.00016438,2]
[328829340,1717853449342,-500.0,0.00016438,2]
[328829341,1717853449352,-500.0,0.00016438,2]
[328829342,1717853449362,-1843.39,0.00016438,2]
[328829343,1717853449372,-500.0,0.00016438,2]
[328829344,1717853449382,-489.76196364,0.00016438,2]
[328829345,1717853449391,-1927.33,0.00016438,2]
[328829346,1717853449401,-500.0,0.00016438,2]
[328829347,1717853449411,-1070.93,0.00016438,2]
[328829348,1717853449421,-500.0,0.00016438,2]
[328829349,1717853449431,-555.46,0.00016438,2]
[328829350,1717853449441,-500.0,0.00016438,2]
[328829351,1717853449453,-500.0,0.00016438,2]
[328829352,1717853449463,-500.0,0.00016438,2]
[328829353,1717853449473,-500.0,0.00016438,2]
[328829354,1717853449485,-500.0,0.00016438,2]
[328829355,1717853449495,-500.0,0.00016438,2]
[328829356,1717853449505,-500.0,0.00016438,2]
[328829357,1717853449515,-164.42514115,0.00016438,2]
[328829358,1717853449525,-500.0,0.00016438,2]
[328829359,1717853449535,-524.83197671,0.00016438,2]
[328829360,1717853449544,-1015.53,0.00016438,2]
[328829361,1717853449554,-500.0,0.00016438,2]
[328829362,1717853449564,-500.0,0.00016438,2]
[328829363,1717853449573,-500.0,0.00016438,2]
[328829364,1717853449583,-464.32304756,0.00016438,2]
[328829365,1717853449593,-500.0,0.00016438,2]
[328829366,1717853449603,-500.0,0.00016438,2]
[328829367,1717853449613,-1759.84,0.00016438,2]
[328829368,1717853449623,-500.0,0.00016438,2]
[328829369,1717853449634,-550.14485303,0.00016438,2]
[328829370,1717853449644,-500.0,0.00016438,2]
[328829371,1717853449654,-500.0,0.00016438,2]
[328829372,1717853449663,-500.0,0.00016438,2]
[328829373,1717853449673,-500.0,0.00016438,2]
[328829374,1717853449682,-500.6077994,0.00016438,2]
[328829375,1717853449691,-500.0,0.00016438,2]
[328829376,1717853449703,-500.0,0.00016438,2]
[328829377,1717853449713,-693.89,0.00016438,2]
[328829378,1717853449723,-500.0,0.00016438,2]
[328829379,1717853449733,-500.0,0.00016438,2]
[328829380,1717853449743,-500.0,0.00016438,2]
[328829381,1717853449753,-500.0,0.00016438,2]
[328829382,1717853449763,-1980.3,0.00016438,2]
[328829383,1717853449772,-500.0,0.00016438,2]
[328829384,1717853449783,-500.0,0.00016438,2]
[328829385,1717853449792,-1487.23,0.00016438,2]
[328829386,1717853449802,-500.0,0.00016438,2]
[328829387,1717853449812,-500.0,0.00016438,2]
[328829388,1717853449822,-500.0,0.00016438,2]
[328829389,1717853449832,-500.0,0.00016438,2]
[328829390,1717853449841,-500.0,0.00016438,2]
[328829391,1717853449851,-500.0,0.00016438,2]
[328829392,1717853449861,-500.0,0.00016438,2]
[328829393,1717853449871,-500.0,0.00016438,2]
[328829394,1717853449881,-534.67296137,0.00016438,2]
[328829395,1717853449892,-500.0,0.00016438,2]
[328829396,1717853449902,-500.0,0.00016438,2]
[328829397,1717853449911,-318.13635918,0.00016438,2]
[328829398,1717853449921,-615.4,0.00016438,2]
[328829399,1717853449930,-500.0,0.00016438,2]
[328829400,1717853449940,-500.0,0.00016438,2]
[328829401,1717853449951,-500.0,0.00016438,2]
[328829402,1717853449960,-500.0,0.00016438,2]
[328829403,1717853449969,-500.0,0.00016438,2]
[328829404,1717853449979,-500.0,0.00016438,2]
[328829405,1717853449987,-500.0,0.00016438,2]
[328829406,1717853449997,-500.0,0.00016438,2]
[328829407,1717853450006,-500.0,0.00016438,2]
[328829408,1717853450016,-500.0,0.00016438,2]
[328829409,1717853450027,-577.66149049,0.00016438,2]
[328829410,1717853450037,-964.19,0.00016438,2]
[328829411,1717853450046,-500.0,0.00016438,2]
[328829412,1717853450056,-500.0,0.00016438,2]
[328829413,1717853450067,-500.0,0.00016438,2]
[328829414,1717853450077,-500.0,0.00016438,2]
[328829415,1717853450086,-500.0,0.00016438,2]
[328829416,1717853450097,-500.0,0.00016438,2]
[328829417,1717853450107,-935.59,0.00016438,2]
[328829418,1717853450119,-500.0,0.00016438,2]
[328829419,1717853450129,-2478.2,0.00016438,2]
[328829420,1717853450139,-500.0,0.00016438,2]
[328829421,1717853450149,-500.0,0.00016438,2]
[328829422,1717853450159,-500.0,0.00016438,2]
[328829423,1717853450169,-500.0,0.00016438,2]
[328829424,1717853450179,-500.0,0.00016438,2]
[328829425,1717853450188,-500.0,0.00016438,2]
[328829426,1717853450199,-500.0,0.00016438,2]
[328829427,1717853450210,-500.0,0.00016438,2]
[328829428,1717853450220,-500.0,0.00016438,2]
[328829429,1717853450230,-500.0,0.00016438,2]
[328829430,1717853450239,-500.0,0.00016438,2]
[328829431,1717853450248,-1210.94,0.00016438,2]
[328829432,1717853450258,-500.0,0.00016438,2]
[328829433,1717853450268,-500.0,0.00016438,2]
[328829434,1717853450278,-515.71932315,0.00016438,2]
[328829435,1717853450288,-500.0,0.00016438,2]
[328829436,1717853450297,-500.0,0.00016438,2]
[328829437,1717853450307,-1157.58,0.00016438,2]
[328829438,1717853450316,-500.0,0.00016438,2]
[328829439,1717853450326,-872.55,0.00016438,2]
[328829440,1717853450335,-500.0,0.00016438,2]
[328829441,1717853450344,-500.0,0.00016438,2]
[328829442,1717853450354,-500.0,0.00016438,2]
[328829443,1717853450364,-500.0,0.00016438,2]
[328829444,1717853450374,-500.0,0.00016438,2]
[328829445,1717853450383,-1019.74,0.00016438,2]
[328829446,1717853450393,-500.0,0.00016438,2]
[328829447,1717853450402,-3057.52,0.00016438,2]
[328829448,1717853450412,-625.91,0.00016438,2]
[328829449,1717853450423,-623.17,0.00016438,2]
[328829450,1717853450433,-1201.52,0.00016438,2]
[328829451,1717853450443,-500.0,0.00016438,2]
[328829452,1717853450455,-500.0,0.00016438,2]
[328829453,1717853450465,-500.0,0.00016438,2]
[328829454,1717853450475,-500.0,0.00016438,2]
[328829455,1717853450485,-500.0,0.00016438,2]
[328829456,1717853450495,-1908.91,0.00016438,2]
[328829457,1717853450505,-1671.88,0.00016438,2]
[328829458,1717853450515,-20820.28,0.00016438,2]
[328829459,1717853450526,-614.33,0.00016438,2]
[328829460,1717853450536,-263.13978015,0.00016438,2]
[328829461,1717853450546,-500.0,0.00016438,2]
[328829462,1717853450557,-500.0,0.00016438,2]
[328829463,1717853450568,-500.0,0.00016438,2]
[328829464,1717853450578,-504.63965132,0.00016438,2]
[328829465,1717853450588,-580.91594452,0.00016438,2]
[328829466,1717853450598,-908.68,0.00016438,2]
[328829467,1717853450609,-908.68,0.00016438,2]
[328829468,1717853450628,-908.68,0.00016438,2]
[328829469,1717853450642,-908.68,0.00016438,2]
[328829470,1717853450654,-908.68,0.00016438,2]
[328829471,1717853450664,-908.68,0.00016438,2]
[328829472,1717853450675,-908.68,0.00016438,2]
[328829473,1717853450687,-908.68,0.00016438,2]
[328829474,1717853450699,-908.68,0.00016438,2]
[328829475,1717853450709,-908.68,0.00016438,2]
[328829476,1717853450719,-908.68,0.00016438,2]
[328829477,1717853450731,-500.0,0.00016438,2]
[328829478,1717853450741,-500.0,0.00016438,2]
[328829479,1717853450752,-500.0,0.00016438,2]
[328829480,1717853450762,-500.0,0.00016438,2]
[328829481,1717853450772,-500.0,0.00016438,2]
[328829482,1717853450783,-500.0,0.00016438,2]
[328829483,1717853450792,-500.0,0.00016438,2]
[328829484,1717853450804,-1583.34,0.00016438,2]
[328829485,1717853450815,-500.0,0.00016438,2]
[328829486,1717853450826,-653.67,0.00016438,2]
[328829487,1717853450837,-500.0,0.00016438,2]
[328829488,1717853450847,-502.89106234,0.00016438,2]
[328829489,1717853450857,-599.99,0.00016438,2]
[328829490,1717853450867,-500.0,0.00016438,2]
[328829491,1717853450877,-500.0,0.00016438,2]
[328829492,1717853450888,-3102.61,0.00016438,2]
[328829493,1717853450898,-925.67,0.00016438,2]
[328829494,1717853450909,-645.73,0.00016438,2]
[328829495,1717853450919,-500.0,0.00016438,2]
[328829496,1717853450930,-500.0,0.00016438,2]
[328829497,1717853450940,-500.0,0.00016438,2]
[328829498,1717853450952,-831.72,0.00016438,2]
[328829499,1717853450963,-500.0,0.00016438,2]
[328829500,1717853450974,-500.0,0.00016438,2]
[328829501,1717853450984,-3127.01,0.00016438,2]
[328829502,1717853450995,-500.0,0.00016438,2]
[328829503,1717853451005,-513.21175853,0.00016438,2]
[328829504,1717853451016,-12030.78,0.00016438,2]
[328829505,1717853451026,-12030.78,0.00016438,2]
[328829506,1717853451036,-12030.78,0.00016438,2]
[328829507,1717853451045,-12030.78,0.00016438,2]
[328829508,1717853451183,-12030.78,0.00016438,2]
[328829509,1717853451194,-1333.96,0.00016438,2]
[328829510,1717853451206,-12030.78,0.00016438,2]
[328829511,1717853451219,-12030.78,0.00016438,2]
[328829512,1717853451229,-12030.78,0.00016438,2]
[328829513,1717853451239,-500.0,0.00016438,2]
[328829514,1717853451250,-12030.78,0.00016438,2]
[328829515,1717853451260,-12030.78,0.00016438,2]
[328829516,1717853451270,-12030.78,0.00016438,2]
[328829517,1717853451281,-12030.78,0.00016438,2]
[328829518,1717853451291,-12030.78,0.00016438,2]
[328829519,1717853451301,-500.0,0.00016438,2]
[328829520,1717853451312,-12030.78,0.00016438,2]
[328829521,1717853451322,-500.0,0.00016438,2]
[328829522,1717853451332,-500.0,0.00016438,2]
[328829523,1717853451342,-500.0,0.00016438,2]
[328829524,1717853451351,-500.0,0.00016438,2]
[328829525,1717853451361,-542.51,0.00016438,2]
[328829526,1717853451371,-500.0,0.00016438,2]
[328829527,1717853451381,-271.57801166,0.00016438,2]
[328829528,1717853451390,-504.04534883,0.00016438,2]
[328829529,1717853451399,-1929.47,0.00016438,2]
[328829530,1717853451410,-3901.22,0.00016438,2]
[328829531,1717853451422,-527.51181281,0.00016438,2]
[328829532,1717853451433,-500.0,0.00016438,2]
[328829533,1717853451445,-492.16827331,0.00016438,2]
[328829534,1717853451457,-1213.88,0.00016438,4]
[328829535,1717853451467,-587.77,0.00016438,2]
[328829536,1717853451477,-520.2028695,0.00016438,2]
[328829537,1717853451486,-500.0,0.00016438,2]
[328829538,1717853451496,-500.0,0.00016438,2]
[328829539,1717853451506,-500.0,0.00016438,2]
[328829540,1717853451516,-500.0,0.00016438,2]
[328829541,1717853451526,-500.0,0.00016438,2]
[328829542,1717853451535,-531.7876289,0.00016438,2]
[328829543,1717853451546,-500.0,0.00016438,2]
[328829544,1717853451557,-500.0,0.00016438,2]
[328829545,1717853451567,-4566.05,0.00016438,2]
[328829546,1717853451577,-500.0,0.00016438,2]
[328829547,1717853451587,-528.98,0.00016438,2]
[328829548,1717853451597,-500.0,0.00016438,2]
[328829549,1717853451607,-500.0,0.00016438,2]
[328829550,1717853451616,-505.94968364,0.00016438,2]
[328829551,1717853451626,-500.0,0.00016438,2]
[328829552,1717853451636,-1843.58,0.00016438,2]
[328829553,1717853451646,-500.0,0.00016438,2]
[328829554,1717853451655,-500.0,0.00016438,2]
[328829555,1717853451665,-500.0,0.00016438,2]
[328829556,1717853451675,-500.0,0.00016438,2]
[328829557,1717853451685,-4780.76,0.00016438,2]
[328829558,1717853451695,-500.0,0.00016438,2]
[328829559,1717853451707,-500.0,0.00016438,2]
[328829560,1717853451717,-500.0,0.00016438,2]
[328829561,1717853451727,-8753.43,0.00016438,2]
[328829562,1717853451736,-500.0,0.00016438,2]
[328829563,1717853451746,-504.60082719,0.00016438,2]
[328829564,1717853451756,-865.12,0.00016438,2]
[328829565,1717853451766,-500.0,0.00016438,2]
[328829566,1717853451776,-613.11,0.00016438,2]
[328829567,1717853451786,-867.57,0.00016438,2]
[328829568,1717853451796,-500.0,0.00016438,2]
[328829569,1717853451806,-206.58615589,0.00016438,2]
[328829570,1717853451816,-2381.46,0.00016438,2]
[328829571,1717853451826,-500.0,0.00016438,2]
[328829572,1717853451836,-500.0,0.00016438,2]
[328829573,1717853451846,-726.6,0.00016438,2]
[328829574,1717853451855,-500.89200816,0.00016438,2]
[328829575,1717853451865,-957.58,0.00016438,2]
[328829576,1717853451874,-500.0,0.00016438,2]
[328829577,1717853451884,-502.79190407,0.00016438,2]
[328829578,1717853451895,-822.63,0.00016438,2]
[328829579,1717853451906,-500.0,0.00016438,2]
[328829580,1717853451916,-254.51232997,0.00016438,2]
[328829581,1717853451926,-500.0,0.00016438,2]
[328829582,1717853451936,-500.0,0.00016438,2]
[328829583,1717853451945,-500.0,0.00016438,2]
[328829584,1717853451957,-500.0,0.00016438,2]
[328829585,1717853451966,-500.0,0.00016438,2]
[328829586,1717853451976,-500.0,0.00016438,2]
[328829587,1717853451986,-500.0,0.00016438,2]
[328829588,1717853451996,-500.0,0.00016438,2]
[328829589,1717853452005,-500.0,0.00016438,2]
[328829590,1717853452015,-2264.13,0.00016438,2]
[328829591,1717853452025,-500.0,0.00016438,2]
[328829592,1717853452035,-151.0,0.00016438,2]
[328829593,1717853452045,-500.0,0.00016438,2]
[328829594,1717853452056,-151.0,0.00016438,2]
[328829595,1717853452067,-500.0,0.00016438,2]
[328829596,1717853452076,-151.0,0.00016438,2]
[328829597,1717853452087,-500.0,0.00016438,2]
[328829598,1717853452097,-151.0,0.00016438,2]
[328829599,1717853452108,-500.0,0.00016438,2]
[328829600,1717853452119,-505.54806492,0.00016438,2]
[328829601,1717853452129,-500.0,0.00016438,2]
[328829602,1717853452139,-151.0,0.00016438,2]
[328829603,1717853452148,-500.0,0.00016438,2]
[328829604,1717853452158,-151.0,0.00016438,2]
[328829605,1717853452168,-151.0,0.00016438,2]
[328829606,1717853452178,-151.0,0.00016438,2]
[328829607,1717853452188,-500.0,0.00016438,2]
[328829608,1717853452200,-500.0,0.00016438,2]
[328829609,1717853452210,-500.0,0.00016438,2]
[328829610,1717853452219,-10823.93,0.00016438,2]
[328829611,1717853452229,-266.59014254,0.00016438,2]
[328829612,1717853452239,-500.0,0.00016438,2]
[328829613,1717853452249,-500.0,0.00016438,2]
[328829614,1717853452259,-500.0,0.00016438,2]
[328829615,1717853452269,-500.0,0.00016438,2]
[328829616,1717853452279,-1807.63,0.00016438,2]
[328829617,1717853452288,-706.93,0.00016438,2]
[328829618,1717853452298,-500.0,0.00016438,2]
[328829619,1717853452308,-500.0,0.00016438,2]
[328829620,1717853452318,-503.79111132,0.00016438,2]
[328829621,1717853452327,-500.0,0.00016438,2]
[328829622,1717853452337,-2069.46,0.00016438,2]
[328829623,1717853452346,-503.1961321,0.00016438,2]
[328829624,1717853452356,-583.89440153,0.00016438,2]
[328829625,1717853452365,-312.70576671,0.00016438,2]
[328829626,1717853452375,-5699.48,0.00016438,2]
[328829627,1717853452385,-1703.73,0.00016438,2]
[328829628,1717853452395,-159.576731,0.00016438,2]
[328829629,1717853452405,-2790.57,0.00016438,2]
[328829630,1717853452415,-2179.44,0.00016438,2]
[328829631,1717853452425,-500.0,0.00016438,2]
[328829632,1717853452435,-163.22498179,0.00016438,2]